fUSD/lending_fUSD_20250228
["ID","MTS","AMOUNT","RATE_DAILY","PERIOD"]
[354839857,1740731453175,-150.0,0.00044064,2]
[354839858,1740731453184,-150.0,0.00044085,2]
[354839859,1740731453194,-150.0,0.00044105,2]
[354839860,1740731453203,-150.0,0.00044116,2]
[354839861,1740731453213,-150.0,0.00044118,2]
[354839862,1740731453222,-150.0,0.00044155,2]
[354839863,1740731453231,-150.0,0.00044184,2]
[354839864,1740731453240,-150.0,0.00044208,2]
[354839865,1740731453250,-150.0,0.00044227,2]
[354839866,1740731453259,-150.0,0.0004423,2]
[354839867,1740731453268,-150.0,0.00044346,2]
[354839868,1740731453277,-150.0,0.00044356,2]
[354839869,1740731453286,-150.0,0.00044463,2]
[354839870,1740731453295,-150.0,0.00044497,2]
[354839871,1740731453304,-18471.4,0.0004457,8]
[354839872,1740731453314,-200.0,0.00044572,120]
[354839873,1740731453325,-150.0,0.00044575,2]
[354839874,1740731453334,-359.81,0.00044585,2]
[354839875,1740731453343,-6179.59,0.00044636,117]
[354839876,1740731453353,-150.0,0.0004467,2]
[354839877,1740731453362,-150.0,0.00044757,2]
[354839878,1740731453372,-308.31,0.00044767,120]
[354839879,1740731453381,-2000.0,0.00044775,3]
[354839880,1740731453391,-150.0,0.0004479,14]
[354839881,1740731453400,-392.7,0.000448,36]
[354839882,1740731453409,-392.7,0.000448,36]
[354839883,1740731453420,-392.7,0.000448,36]
[354839884,1740731453429,-392.7,0.000448,36]
[354839885,1740731453438,-392.7,0.000448,36]
[354839886,1740731453448,-392.7,0.000448,36]
[354839887,1740731453458,-392.7,0.000448,36]
[354839888,1740731453467,-392.7,0.000448,36]
[354839889,1740731453478,-392.7,0.000448,36]
[354839890,1740731453489,-392.7,0.000448,36]
[354839891,1740731453499,-392.7,0.000448,36]
[354839892,1740731453509,-392.7,0.000448,36]
[354839893,1740731453519,-150.0,0.00044849,14]
[354839894,1740731453529,-208.49196304,0.00044885,20]
[354839895,1740731453540,-1000.0,0.000449,120]
[354839896,1740731453549,-515.881431,0.000449,61]
[354839897,1740731453561,-150.0,0.00044927,14]
[354839898,1740731453573,-150.0,0.00044936,2]
[354839899,1740731453582,-150.0,0.00044949,2]
[354839900,1740731453592,-13615.79165047,0.00044972,45]
[354839901,1740731453601,-150.0,0.00044993,2]
[354839902,1740731453611,-162.99406451,0.00044994,30]
[354839903,1740731453622,-1777.0,0.00044999,120]
[354839904,1740731453632,-500.0,0.00044999,120]
[354839905,1740731453642,-100000.0,0.00045,45]
[354839906,1740731453651,-50000.0,0.00045,120]
[354839907,1740731453661,-150.0,0.00045,2]
[354839908,1740731453671,-582.28345688,0.00045,2]
[354839909,1740731453681,-151.0,0.00045,120]
[354839910,1740731453690,-151.0,0.00045,120]
[354839911,1740731453700,-150.0,0.00045,2]
[354839912,1740731453710,-150.0,0.00045,2]
[354839913,1740731453720,-1180.37529064,0.00045,2]
[354839914,1740731453730,-5931.80945684,0.00045,2]
[354839915,1740731453739,-399.64798086,0.00045,120]
[354839916,1740731453748,-375.455,0.00045,30]
[354839917,1740731453758,-375.455,0.00045,30]
[354839918,1740731453767,-641.96,0.00045098,2]
[354839919,1740731453777,-885.6955198,0.00045101,4]
[354839920,1740731453786,-15425.51797733,0.00045222,10]
[354839921,1740731453796,-24499.7530206,0.00045245,10]
[354839922,1740731453807,-2000.0,0.00045837,5]
[354839923,1740731453816,-796.05,0.00045875,75]
[354839924,1740731453830,-150.17201952,0.00045893,14]
[354839925,1740731453840,-1000.0,0.000459,120]
[354839926,1740731453850,-5433.44666696,0.00046,2]
[354839927,1740731453860,-200.0,0.00046133,120]
[354839928,1740731453869,-500.0,0.00046332,120]
[354839929,1740731453878,-6619.5,0.00046545,117]
[354839930,1740731453888,-151.0,0.00046575,120]
[354839931,1740731453899,-1500.0,0.000466,2]
[354839932,1740731453909,-159.32,0.00046606,120]
[354839933,1740731453918,-24499.7530206,0.00046762,10]
[354839934,1740731453928,-153.0,0.00046849,90]
[354839935,1740731453938,-198.3,0.000469,14]
[354839936,1740731453947,-1000.0,0.000469,120]
[354839937,1740731453956,-153.0,0.00047,90]
[354839938,1740731453965,-200.0,0.00047267,120]
[354839939,1740731453975,-641.96,0.00047362,2]
[354839940,1740731453985,-150.0,0.00047609,30]
[354839941,1740731453994,-150.0,0.00047609,30]
[354839942,1740731454004,-150.0,0.00047609,30]
[354839943,1740731454014,-150.0,0.00047609,30]
[354839944,1740731454023,-1164.20675836,0.00047609,30]
[354839945,1740731454033,-389.2016932,0.00047609,30]
[354839946,1740731454043,-6564.790984,0.00047609,30]
[354839947,1740731454053,-669.16215693,0.00047609,30]
[354839948,1740731454062,-500.0,0.00047666,120]
[354839949,1740731454075,-2000.0,0.000477,120]
[354839950,1740731454084,-2000.0,0.000477,120]
[354839951,1740731454094,-309.0,0.000477,120]
[354839952,1740731454103,-271.89917564,0.0004788,100]
[354839953,1740731454113,-1000.0,0.000479,120]
[354839954,1740731454123,-9139.46952752,0.00047998,120]
[354839955,1740731454134,-8716.84433142,0.00047998,120]
[354839956,1740731454144,-925.64932259,0.00048,120]
[354839957,1740731454153,-4427.99481188,0.00048,120]
[354839958,1740731454163,-151.0,0.00048137,120]
[354839959,1740731454173,-367.65103354,0.000482,12]
[354839960,1740731454183,-274282.00210712,0.000482,15]
[354839961,1740731454192,-24499.7530206,0.00048279,11]
[354839962,1740731454201,-200.0,0.000484,120]
[354839963,1740731454211,-200.0,0.00048401,120]
[354839964,1740731454220,-7062.4,0.00048455,117]
[354839965,1740731454230,-10000.0,0.000485,100]
[354839966,1740731454239,-152.0,0.00048799,3]
[354839967,1740731454249,-83809.49908655,0.000488,120]
[354839968,1740731454259,-1611.68955262,0.000488,120]
[354839969,1740731454268,-1840.20107628,0.000488,120]
[354839970,1740731454277,-30932.07300242,0.000488,120]
[354839971,1740731454287,-629.79094195,0.000488,120]
[354839972,1740731454297,-198.92981665,0.0004888,120]
[354839973,1740731454306,-1000.0,0.000489,120]
[354839974,1740731454316,-153.0,0.00048904,90]
[354839975,1740731454328,-500.0,0.00048999,120]
[354839976,1740731454337,-490.0315335,0.00049,5]
[354839977,1740731454347,-200744.7189,0.00049,120]
[354839978,1740731454357,-500.0,0.00049315,120]
[354839979,1740731454366,-1000.0,0.00049315,120]
[354839980,1740731454376,-150.0,0.00049315,30]
[354839981,1740731454385,-183.33,0.00049315,2]
[354839982,1740731454395,-1000.0,0.00049342,120]
[354839983,1740731454404,-150.0,0.00049342,30]
[354839984,1740731454414,-1000.0,0.00049369,120]
[354839985,1740731454423,-150.0,0.0004937,30]
[354839986,1740731454433,-1000.0,0.00049397,120]
[354839987,1740731454442,-287.19341456,0.00049397,30]
[354839988,1740731454451,-1000.0,0.00049424,120]
[354839989,1740731454461,-1000.0,0.00049452,120]
[354839990,1740731454470,-1000.0,0.00049479,120]
[354839991,1740731454479,-392.7,0.000495,45]
[354839992,1740731454488,-392.7,0.000495,45]
[354839993,1740731454498,-392.7,0.000495,45]
[354839994,1740731454508,-392.7,0.000495,45]
[354839995,1740731454517,-392.7,0.000495,45]
[354839996,1740731454526,-392.7,0.000495,45]
[354839997,1740731454540,-392.7,0.000495,45]
[354839998,1740731454550,-392.7,0.000495,45]
[354839999,1740731454559,-392.7,0.000495,45]
[354840000,1740731454569,-392.7,0.000495,45]
[354840001,1740731454583,-392.7,0.000495,45]
[354840002,1740731454594,-392.7,0.000495,45]
[354840003,1740731454603,-392.7,0.000495,45]
[354840004,1740731454613,-392.7,0.000495,45]
[354840005,1740731454624,-392.7,0.000495,45]
[354840006,1740731454634,-392.7,0.000495,45]
[354840007,1740731454643,-392.7,0.000495,45]
[354840008,1740731454653,-392.7,0.000495,45]
[354840009,1740731454662,-392.7,0.000495,45]
[354840010,1740731454672,-392.7,0.000495,45]
[354840011,1740731454681,-392.7,0.000495,45]
[354840012,1740731454690,-392.7,0.000495,45]
[354840013,1740731454700,-392.7,0.000495,45]
[354840014,1740731454710,-392.7,0.000495,45]
[354840015,1740731454720,-1000.0,0.00049506,120]
[354840016,1740731454729,-151.0,0.00049507,120]
[354840017,1740731454738,-1000.0,0.00049534,120]
[354840018,1740731454748,-200.0,0.00049535,120]
[354840019,1740731454757,-1000.0,0.00049561,120]
[354840020,1740731454767,-500.0,0.00049589,120]
[354840021,1740731454776,-693.67891623,0.00049589,120]
[354840022,1740731454785,-641.96,0.00049625,2]
[354840023,1740731454795,-151.0,0.00049699,120]
[354840024,1740731454804,-359.81,0.00049719,2]
[354840025,1740731454814,-24499.7530206,0.00049797,11]
[354840026,1740731454826,-182.80122767,0.000498,30]
[354840027,1740731454835,-500.0,0.00049863,120]
[354840028,1740731454845,-168.14683211,0.0004989,120]
[354840029,1740731454854,-22809.67758461,0.000499,120]
[354840030,1740731454864,-1000.0,0.000499,120]
[354840031,1740731454873,-100000.0,0.0005,50]
[354840032,1740731454882,-314.0,0.0005,120]
[354840033,1740731454891,-1224.33322885,0.0005,120]
[354840034,1740731454900,-2968.0,0.0005,120]
[354840035,1740731454909,-50000.0,0.0005,120]
[354840036,1740731454919,-500.0,0.0005,120]
[354840037,1740731454929,-24479.0,0.0005,120]
[354840038,1740731454939,-46205.13246499,0.0005,120]
[354840039,1740731454949,-5272.0,0.0005,12]
[354840040,1740731454958,-155.89,0.0005,120]
[354840041,1740731454967,-155.89,0.0005,120]
[354840042,1740731454976,-155.89,0.0005,120]
[354840043,1740731454985,-155.89,0.0005,120]
[354840044,1740731454994,-155.89,0.0005,120]
[354840045,1740731455003,-155.89,0.0005,120]
[354840046,1740731455012,-155.89,0.0005,120]
[354840047,1740731455021,-155.89,0.0005,120]
[354840048,1740731455031,-155.89,0.0005,120]
[354840049,1740731455040,-155.89,0.0005,120]
[354840050,1740731455050,-155.89,0.0005,120]
[354840051,1740731455174,-155.89,0.0005,120]
[354840052,1740731455184,-155.89,0.0005,120]
[354840053,1740731455194,-500.0,0.00050136,120]
[354840054,1740731455204,-168.14683211,0.00050329,120]
[354840055,1740731455214,-500.0,0.00050332,120]
[354840056,1740731455223,-7502.1,0.00050364,117]
[354840057,1740731455234,-500.0,0.0005041,120]
[354840058,1740731455243,-161.022816,0.00050498,120]
[354840059,1740731455253,-101414.07830046,0.000505,120]
[354840060,1740731455262,-1191.81,0.000506,5]
[354840061,1740731455271,-200.0,0.00050669,120]
[354840062,1740731455281,-500.0,0.00050684,120]
[354840063,1740731455292,-168.14683211,0.00050767,120]
[354840064,1740731455301,-207.0,0.0005077,30]
[354840065,1740731455310,-157.022816,0.00050798,120]
[354840066,1740731455320,-5550.0,0.000508,120]
[354840067,1740731455332,-200000.0,0.000509,120]
[354840068,1740731455341,-500.0,0.00050958,120]
[354840069,1740731455350,-100000.0,0.00051,51]
[354840070,1740731455359,-161.022816,0.00051198,120]
[354840071,1740731455370,-168.14683211,0.00051205,120]
[354840072,1740731455380,-500.0,0.00051232,120]
[354840073,1740731455389,-151.0,0.0005126,120]
[354840074,1740731455399,-24499.7530206,0.00051314,12]
[354840075,1740731455408,-157.0,0.00051349,120]
[354840076,1740731455417,-157.022816,0.00051498,120]
[354840077,1740731455426,-500.0,0.00051506,120]
[354840078,1740731455435,-5550.0,0.000516,120]
[354840079,1740731455445,-168.14683211,0.00051644,120]
[354840080,1740731455456,-500.0,0.00051666,120]
[354840081,1740731455465,-500.0,0.0005178,120]
[354840082,1740731455475,-161.022816,0.00051798,120]
[354840083,1740731455486,-197899.57372285,0.000518,120]
[354840084,1740731455496,-641.96,0.00051889,2]
[354840085,1740731455506,-1000.0,0.000519,120]
[354840086,1740731455516,-362.0,0.0005197,120]
[354840087,1740731455526,-362.0,0.0005198,120]
[354840088,1740731455538,-362.0,0.0005199,120]
[354840089,1740731455548,-100000.0,0.00052,52]
[354840090,1740731455561,-500.0,0.00052054,120]
[354840091,1740731455570,-159.32,0.00052079,120]
[354840092,1740731455583,-168.14683211,0.00052082,120]
[354840093,1740731455592,-1121.0,0.0005218,120]
[354840094,1740731455602,-1121.0,0.0005218,120]
[354840095,1740731455611,-1121.0,0.0005218,120]
[354840096,1740731455620,-1121.0,0.0005218,120]
[354840097,1740731455631,-1121.0,0.0005218,120]
[354840098,1740731455641,-1121.0,0.0005218,120]
[354840099,1740731455650,-1121.0,0.0005218,120]
[354840100,1740731455660,-1121.0,0.0005218,120]
[354840101,1740731455669,-1121.0,0.0005218,120]
[354840102,1740731455678,-1121.0,0.0005218,120]
[354840103,1740731455687,-1121.0,0.0005218,120]
[354840104,1740731455696,-383.68914804,0.0005218,120]
[354840105,1740731455705,-157.022816,0.00052198,120]
[354840106,1740731455715,-7945.2,0.00052273,117]
[354840107,1740731455724,-500.0,0.00052328,120]
[354840108,1740731455733,-161.022816,0.00052498,120]
[354840109,1740731455743,-207.0,0.0005254,30]
[354840110,1740731455752,-168.14683211,0.00052548,120]
[354840111,1740731455762,-500.0,0.00052602,120]
[354840112,1740731455771,-211.0,0.0005261,30]
[354840113,1740731455780,-157.022816,0.00052798,120]
[354840114,1740731455789,-151.0,0.00052822,120]
[354840115,1740731455799,-406.41180734,0.0005283,120]
[354840116,1740731455808,-24499.7530206,0.00052831,12]
[354840117,1740731455817,-500.0,0.00052876,120]
[354840118,1740731455829,-1000.0,0.00052987,120]
[354840119,1740731455838,-500.0,0.00052999,120]
[354840120,1740731455848,-100000.0,0.00053,53]
[354840121,1740731455858,-500.0,0.0005315,120]
[354840122,1740731455868,-1121.0,0.0005318,120]
[354840123,1740731455877,-1121.0,0.0005318,120]
[354840124,1740731455887,-1121.0,0.0005318,120]
[354840125,1740731455897,-1121.0,0.0005318,120]
[354840126,1740731455906,-1121.0,0.0005318,120]
[354840127,1740731455915,-161.022816,0.00053198,120]
[354840128,1740731455925,-442.07,0.0005326,30]
[354840129,1740731455934,-264.21,0.0005326,30]
[354840130,1740731455942,-150.0,0.0005326,30]
[354840131,1740731455953,-185.17227354,0.00053267,30]
[354840132,1740731455962,-150.0,0.00053267,30]
[354840133,1740731455971,-796.11681532,0.00053267,30]
[354840134,1740731455980,-500.0,0.00053424,120]
[354840135,1740731455989,-157.022816,0.00053498,120]
[354840136,1740731455999,-500.0,0.00053698,120]
[354840137,1740731456008,-152.0,0.0005377,4]
[354840138,1740731456017,-161.022816,0.00053798,120]
[354840139,1740731456026,-2000.0,0.00053799,120]
[354840140,1740731456037,-1121.0,0.0005388,120]
[354840141,1740731456047,-1121.0,0.0005388,120]
[354840142,1740731456058,-1121.0,0.0005388,120]
[354840143,1740731456068,-1121.0,0.0005388,120]
[354840144,1740731456078,-1121.0,0.0005388,120]
[354840145,1740731456087,-1121.0,0.0005388,120]
[354840146,1740731456096,-1121.0,0.0005388,120]
[354840147,1740731456106,-7419.47361797,0.0005389,120]
[354840148,1740731456116,-151.26,0.000539,120]
[354840149,1740731456126,-500.0,0.00053972,120]
[354840150,1740731456137,-13000.0,0.00053987,120]
[354840151,1740731456149,-1000.0,0.00053987,120]
[354840152,1740731456159,-100000.0,0.00054,54]
[354840153,1740731456169,-261.36610464,0.00054,30]
[354840154,1740731456179,-656.06599034,0.00054,30]
[354840155,1740731456188,-22950.0,0.00054,30]
[354840156,1740731456198,-55813.57165276,0.00054,2]
[354840157,1740731456207,-1035.8106,0.00054,120]
[354840158,1740731456216,-1000.0,0.00054,120]
[354840159,1740731456226,-151.0,0.00054,120]
[354840160,1740731456235,-5320.4,0.00054,30]
[354840161,1740731456245,-622.0535134,0.00054,30]
[354840162,1740731456255,-282.90001,0.00054,30]
[354840163,1740731456264,-641.96,0.00054153,2]
[354840164,1740731456273,-1121.0,0.0005418,120]
[354840165,1740731456282,-1121.0,0.0005418,120]
[354840166,1740731456291,-1121.0,0.0005418,120]
[354840167,1740731456299,-1121.0,0.0005418,120]
[354840168,1740731456308,-1121.0,0.0005418,120]
[354840169,1740731456318,-1121.0,0.0005418,120]
[354840170,1740731456329,-1121.0,0.0005418,120]
[354840171,1740731456338,-1121.0,0.0005418,120]
[354840172,1740731456347,-1121.0,0.0005418,120]
[354840173,1740731456357,-1121.0,0.0005418,120]
[354840174,1740731456366,-8384.69,0.00054182,117]
[354840175,1740731456375,-157.022816,0.00054198,120]
[354840176,1740731456385,-392.7,0.000542,54]
[354840177,1740731456395,-392.7,0.000542,54]
[354840178,1740731456405,-392.7,0.000542,54]
[354840179,1740731456415,-392.7,0.000542,54]
[354840180,1740731456424,-392.7,0.000542,54]
[354840181,1740731456434,-392.7,0.000542,54]
[354840182,1740731456443,-392.7,0.000542,54]
[354840183,1740731456453,-392.7,0.000542,54]
[354840184,1740731456462,-392.7,0.000542,54]
[354840185,1740731456471,-392.7,0.000542,54]
[354840186,1740731456481,-392.7,0.000542,54]
[354840187,1740731456490,-392.7,0.000542,54]
[354840188,1740731456500,-392.7,0.000542,54]
[354840189,1740731456509,-392.7,0.000542,54]
[354840190,1740731456519,-392.7,0.000542,54]
[354840191,1740731456528,-392.7,0.000542,54]
[354840192,1740731456543,-392.7,0.000542,54]
[354840193,1740731456553,-392.7,0.000542,54]
[354840194,1740731456563,-392.7,0.000542,54]
[354840195,1740731456576,-392.7,0.000542,54]
[354840196,1740731456587,-392.7,0.000542,54]
[354840197,1740731456597,-392.7,0.000542,54]
[354840198,1740731456607,-392.7,0.000542,54]
[354840199,1740731456617,-392.7,0.000542,54]
[354840200,1740731456627,-500.0,0.00054246,120]
[354840201,1740731456637,-207.0,0.0005431,30]
[354840202,1740731456647,-379.211548,0.00054332,120]
[354840203,1740731456658,-24499.7530206,0.00054348,13]
[354840204,1740731456668,-211.0,0.0005436,30]
[354840205,1740731456677,-151.0,0.00054384,120]
[354840206,1740731456687,-200.0,0.000544,120]
[354840207,1740731456697,-152.41709408,0.00054404,120]
[354840208,1740731456706,-206.0,0.0005442,30]
[354840209,1740731456716,-171.022816,0.00054498,120]
[354840210,1740731456726,-500.0,0.0005452,120]
[354840211,1740731456735,-1467.1982554,0.00054793,120]
[354840212,1740731456744,-500.0,0.00054794,120]
[354840213,1740731456754,-163.364151,0.00054794,120]
[354840214,1740731456763,-763.319646,0.00054794,120]
[354840215,1740731456773,-329.901669,0.00054794,120]
[354840216,1740731456783,-175.16694,0.00054794,120]
[354840217,1740731456793,-159.238037,0.00054794,120]
[354840218,1740731456802,-220.346779,0.00054794,120]
[354840219,1740731456812,-506.16195642,0.00054794,120]
[354840220,1740731456821,-500.0,0.00054794,120]
[354840221,1740731456833,-500.0,0.00054794,120]
[354840222,1740731456842,-500.0,0.00054794,120]
[354840223,1740731456851,-210.69653111,0.00054794,120]
[354840224,1740731456861,-496.39916554,0.00054794,120]
[354840225,1740731456870,-154.07419,0.00054794,120]
[354840226,1740731456879,-500.0,0.00054794,120]
[354840227,1740731456889,-518.57218996,0.00054794,120]
[354840228,1740731456899,-500.0,0.00054794,120]
[354840229,1740731456908,-500.0,0.00054794,120]
[354840230,1740731456917,-159.64058096,0.00054794,120]
[354840231,1740731456927,-500.0,0.00054794,120]
[354840232,1740731456936,-504.02202267,0.00054794,120]
[354840233,1740731456945,-164.522552,0.00054794,120]
[354840234,1740731456954,-500.0,0.00054794,120]
[354840235,1740731456963,-500.0,0.00054794,120]
[354840236,1740731456972,-500.0,0.00054794,120]
[354840237,1740731456981,-500.0,0.00054794,120]
[354840238,1740731456990,-500.0,0.00054794,120]
[354840239,1740731456999,-500.0,0.00054794,120]
[354840240,1740731457010,-500.0,0.00054794,120]
[354840241,1740731457019,-500.0,0.00054794,120]
[354840242,1740731457029,-214.88654175,0.00054794,120]
[354840243,1740731457038,-500.0,0.00054794,120]
[354840244,1740731457047,-500.0,0.00054794,120]
[354840245,1740731457058,-300.0,0.00054794,120]
[354840246,1740731457070,-500.0,0.00054794,120]
[354840247,1740731457082,-494.85366123,0.00054794,120]
[354840248,1740731457091,-500.0,0.00054794,120]
[354840249,1740731457197,-500.0,0.00054794,120]
[354840250,1740731457217,-496.49680804,0.00054794,120]
[354840251,1740731457227,-500.0,0.00054794,16]
[354840252,1740731457237,-500.0,0.00054794,120]
[354840253,1740731457246,-500.0,0.00054794,120]
[354840254,1740731457255,-500.0,0.00054794,120]
[354840255,1740731457265,-174.99931529,0.00054794,120]
[354840256,1740731457274,-500.0,0.00054794,120]
[354840257,1740731457283,-500.0,0.00054794,120]
[354840258,1740731457292,-503.0232213,0.00054794,5]
[354840259,1740731457302,-294.44170906,0.00054794,120]
[354840260,1740731457311,-393.67513432,0.00054794,120]
[354840261,1740731457321,-554.27929309,0.00054794,120]
[354840262,1740731457335,-500.0,0.00054794,120]
[354840263,1740731457345,-500.0,0.00054794,120]
[354840264,1740731457354,-500.0,0.00054794,120]
[354840265,1740731457363,-500.0,0.00054794,120]
[354840266,1740731457373,-502.33656974,0.00054794,3]
[354840267,1740731457383,-500.0,0.00054794,120]
[354840268,1740731457393,-500.0,0.00054794,120]
[354840269,1740731457402,-500.0,0.00054794,120]
[354840270,1740731457412,-500.0,0.00054794,120]
[354840271,1740731457422,-506.10376784,0.00054794,120]
[354840272,1740731457431,-500.0,0.00054794,120]
[354840273,1740731457441,-502.76215279,0.00054794,120]
[354840274,1740731457451,-500.0,0.00054794,120]
[354840275,1740731457461,-500.0,0.00054794,120]
[354840276,1740731457471,-500.0,0.00054794,120]
[354840277,1740731457481,-500.0,0.00054794,120]
[354840278,1740731457490,-500.0,0.00054794,120]
[354840279,1740731457500,-500.0,0.00054794,120]
[354840280,1740731457509,-500.0,0.00054794,120]
[354840281,1740731457519,-500.0,0.00054794,120]
[354840282,1740731457528,-500.0,0.00054794,120]
[354840283,1740731457540,-500.0,0.00054794,120]
[354840284,1740731457549,-500.0,0.00054794,120]
[354840285,1740731457562,-500.0,0.00054794,120]
[354840286,1740731457572,-500.0,0.00054794,120]
[354840287,1740731457584,-500.0,0.00054794,120]
[354840288,1740731457593,-500.0,0.00054794,120]
[354840289,1740731457605,-500.0,0.00054794,120]
[354840290,1740731457614,-500.0,0.00054794,120]
[354840291,1740731457624,-500.0,0.00054794,120]
[354840292,1740731457634,-503.74355289,0.00054794,120]
[354840293,1740731457644,-500.0,0.00054794,120]
[354840294,1740731457654,-507.90280661,0.00054794,120]
[354840295,1740731457663,-500.0,0.00054794,120]
[354840296,1740731457673,-500.0,0.00054794,120]
[354840297,1740731457682,-500.0,0.00054794,120]
[354840298,1740731457691,-500.0,0.00054794,120]
[354840299,1740731457701,-500.0,0.00054794,120]
[354840300,1740731457710,-500.0,0.00054794,120]
[354840301,1740731457719,-500.0,0.00054794,120]
[354840302,1740731457729,-500.0,0.00054794,120]
[354840303,1740731457738,-500.0,0.00054794,120]
[354840304,1740731457747,-500.0,0.00054794,120]
[354840305,1740731457756,-500.0,0.00054794,120]
[354840306,1740731457766,-503.22387142,0.00054794,120]
[354840307,1740731457775,-351.03584898,0.00054794,120]
[354840308,1740731457784,-500.0,0.00054794,120]
[354840309,1740731457794,-500.0,0.00054794,120]
[354840310,1740731457803,-500.0,0.00054794,120]
[354840311,1740731457811,-500.0,0.00054794,120]
[354840312,1740731457821,-500.0,0.00054794,120]
[354840313,1740731457833,-500.0,0.00054794,120]
[354840314,1740731457842,-500.0,0.00054794,120]
[354840315,1740731457852,-500.0,0.00054794,120]
[354840316,1740731457861,-500.0,0.00054794,120]
[354840317,1740731457870,-500.0,0.00054794,120]
[354840318,1740731457879,-500.0,0.00054794,120]
[354840319,1740731457889,-505.89151063,0.00054794,120]
[354840320,1740731457898,-500.0,0.00054794,120]
[354840321,1740731457908,-500.0,0.00054794,120]
[354840322,1740731457917,-500.0,0.00054794,120]
[354840323,1740731457927,-223.50477037,0.00054794,120]
[354840324,1740731457936,-500.0,0.00054794,120]
[354840325,1740731457945,-500.0,0.00054794,120]
[354840326,1740731457954,-500.0,0.00054794,120]
[354840327,1740731457964,-500.0,0.00054794,120]
[354840328,1740731457973,-500.0,0.00054794,120]
[354840329,1740731457983,-631.56056284,0.00054794,120]
[354840330,1740731457992,-500.0,0.00054794,120]
[354840331,1740731458002,-500.0,0.00054794,120]
[354840332,1740731458011,-602.24709837,0.00054794,120]
[354840333,1740731458021,-500.0,0.00054794,120]
[354840334,1740731458031,-500.0,0.00054794,120]
[354840335,1740731458040,-500.0,0.00054794,120]
[354840336,1740731458049,-500.0,0.00054794,120]
[354840337,1740731458059,-500.0,0.00054794,120]
[354840338,1740731458068,-500.0,0.00054794,120]
[354840339,1740731458082,-500.0,0.00054794,120]
[354840340,1740731458092,-500.0,0.00054794,120]
[354840341,1740731458102,-500.0,0.00054794,120]
[354840342,1740731458120,-500.0,0.00054794,120]
[354840343,1740731458136,-500.0,0.00054794,120]
[354840344,1740731458153,-500.0,0.00054794,120]
[354840345,1740731458169,-500.0,0.00054794,120]
[354840346,1740731458184,-500.0,0.00054794,120]
[354840347,1740731458200,-500.0,0.00054794,120]
[354840348,1740731458219,-500.0,0.00054794,120]
[354840349,1740731458236,-502.68278278,0.00054794,120]
[354840350,1740731458252,-500.0,0.00054794,120]
[354840351,1740731458269,-500.0,0.00054794,120]
[354840352,1740731458283,-500.0,0.00054794,120]
[354840353,1740731458300,-500.0,0.00054794,120]
[354840354,1740731458315,-500.0,0.00054794,120]
[354840355,1740731458334,-500.0,0.00054794,120]
[354840356,1740731458350,-500.0,0.00054794,120]